fUSD/lending_fUSD_20240329
["ID","MTS","AMOUNT","RATE_DAILY","PERIOD"]
[320993083,1711732263379,-11829.29,0.00052876,120]
[320993084,1711732263389,-702.44,0.00052876,120]
[320993085,1711732263398,-1475.36,0.00052876,120]
[320993086,1711732263407,-500.0,0.00052876,120]
[320993087,1711732263416,-500.0,0.00052876,120]
[320993088,1711732263426,-725.78,0.00052876,120]
[320993089,1711732263435,-4876.82,0.00052876,120]
[320993090,1711732263444,-1899.07,0.00052876,120]
[320993091,1711732263453,-4287.28,0.00052876,120]
[320993092,1711732263462,-651.91,0.00052876,120]
[320993093,1711732263470,-500.0,0.00052876,120]
[320993094,1711732263479,-500.0,0.00052876,120]
[320993095,1711732263488,-500.0,0.00052876,120]
[320993096,1711732263499,-500.0,0.00052876,120]
[320993097,1711732263508,-500.0,0.00052876,120]
[320993098,1711732263517,-3462.31,0.00052876,120]
[320993099,1711732263526,-500.0,0.00052876,120]
[320993100,1711732263534,-500.0,0.00052876,120]
[320993101,1711732263543,-500.0,0.00052876,120]
[320993102,1711732263552,-531.84,0.00052876,120]
[320993103,1711732263561,-970.04,0.00052876,120]
[320993104,1711732263570,-500.0,0.00052876,120]
[320993105,1711732263579,-2146.07,0.00052876,120]
[320993106,1711732263589,-503.26,0.00052876,120]
[320993107,1711732263598,-546.78,0.00052876,120]
[320993108,1711732263607,-2298.97,0.00052876,120]
[320993109,1711732263616,-978.57,0.00052876,120]
[320993110,1711732263626,-3430.95,0.00052876,120]
[320993111,1711732263635,-500.0,0.00052876,120]
[320993112,1711732263645,-1165.91,0.00052876,120]
[320993113,1711732263655,-500.0,0.00052876,120]
[320993114,1711732263665,-4577.78,0.00052876,21]
[320993115,1711732263680,-656.94,0.00052876,120]
[320993116,1711732263689,-500.0,0.00052876,2]
[320993117,1711732263698,-1000.0,0.00052891,120]
[320993118,1711732263707,-1347.33780202,0.000529,120]
[320993119,1711732263717,-192.85,0.000529,14]
[320993120,1711732263726,-1857799.0646772,0.000529,23]
[320993121,1711732263735,-151.0,0.000529,120]
[320993122,1711732263744,-151.0,0.000529,120]
[320993123,1711732263755,-1300.0,0.000529,19]
[320993124,1711732263765,-151.0,0.000529,120]
[320993125,1711732263774,-151.0,0.000529,120]
[320993126,1711732263783,-151.0,0.000529,120]
[320993127,1711732263793,-184.484569,0.000529,120]
[320993128,1711732263802,-151.0,0.000529,120]
[320993129,1711732263812,-151.0,0.000529,120]
[320993130,1711732263821,-151.0,0.000529,120]
[320993131,1711732263831,-151.0,0.000529,30]
[320993132,1711732263841,-3106.193186,0.000529,120]
[320993133,1711732263851,-359.84839,0.000529,120]
[320993134,1711732263860,-3106.193186,0.000529,120]
[320993135,1711732263874,-359.84839,0.000529,120]
[320993136,1711732263884,-218.146791,0.000529,120]
[320993137,1711732263893,-151.0,0.000529,120]
[320993138,1711732263903,-218.146791,0.000529,120]
[320993139,1711732263912,-151.0,0.000529,120]
[320993140,1711732263922,-156.927235,0.000529,30]
[320993141,1711732263932,-151.172693,0.000529,120]
[320993142,1711732263945,-386.171921,0.000529,120]
[320993143,1711732263955,-156.927235,0.000529,30]
[320993144,1711732263964,-386.171921,0.000529,120]
[320993145,1711732263973,-151.0,0.000529,14]
[320993146,1711732263982,-151.0,0.000529,120]
[320993147,1711732263991,-155.12100314,0.00052901,60]
[320993148,1711732263999,-175.5936007,0.00052913,10]
[320993149,1711732264009,-150.0,0.0005293,7]
[320993150,1711732264017,-1000.0,0.00052937,120]
[320993151,1711732264026,-154.09218812,0.00052944,10]
[320993152,1711732264035,-400.0,0.00052954,120]
[320993153,1711732264044,-151.0,0.00052959,120]
[320993154,1711732264053,-196.2357467,0.00052968,10]
[320993155,1711732264061,-175.16264914,0.0005297,10]
[320993156,1711732264070,-1000.0,0.00052984,120]
[320993157,1711732264079,-5000.0,0.00053,120]
[320993158,1711732264088,-3843.19158749,0.00053,120]
[320993159,1711732264097,-153.30888088,0.00053007,60]
[320993160,1711732264106,-548.63,0.00053011,2]
[320993161,1711732264115,-1000.0,0.0005303,120]
[320993162,1711732264123,-9351.05341888,0.00053033,30]
[320993163,1711732264133,-1000.0,0.00053076,120]
[320993164,1711732264143,-1000.0,0.00053123,120]
[320993165,1711732264153,-630.18,0.0005315,120]
[320993166,1711732264163,-500.0,0.0005315,120]
[320993167,1711732264173,-500.0,0.0005315,120]
[320993168,1711732264182,-500.0,0.0005315,120]
[320993169,1711732264192,-500.0,0.0005315,120]
[320993170,1711732264202,-480.04,0.0005315,120]
[320993171,1711732264211,-152.96,0.0005315,120]
[320993172,1711732264220,-500.0,0.0005315,120]
[320993173,1711732264230,-500.0,0.0005315,120]
[320993174,1711732264239,-500.0,0.0005315,120]
[320993175,1711732264249,-500.0,0.0005315,120]
[320993176,1711732264259,-500.0,0.0005315,120]
[320993177,1711732264268,-500.0,0.0005315,120]
[320993178,1711732264277,-500.0,0.0005315,120]
[320993179,1711732264287,-500.0,0.0005315,120]
[320993180,1711732264297,-500.0,0.0005315,120]
[320993181,1711732264307,-500.0,0.0005315,120]
[320993182,1711732264317,-500.0,0.0005315,120]
[320993183,1711732264326,-500.0,0.0005315,120]
[320993184,1711732264335,-500.0,0.0005315,120]
[320993185,1711732264344,-621.16169885,0.0005315,120]
[320993186,1711732264353,-500.0,0.0005315,120]
[320993187,1711732264363,-500.0,0.0005315,120]
[320993188,1711732264372,-500.0,0.0005315,120]
[320993189,1711732264381,-500.0,0.0005315,120]
[320993190,1711732264391,-500.0,0.0005315,120]
[320993191,1711732264400,-500.0,0.0005315,120]
[320993192,1711732264409,-500.0,0.0005315,120]
[320993193,1711732264419,-500.0,0.0005315,120]
[320993194,1711732264429,-500.0,0.0005315,120]
[320993195,1711732264438,-592.0,0.0005315,2]
[320993196,1711732264448,-500.0,0.0005315,120]
[320993197,1711732264458,-557.74,0.0005315,120]
[320993198,1711732264467,-500.0,0.0005315,120]
[320993199,1711732264476,-500.0,0.0005315,120]
[320993200,1711732264485,-500.0,0.0005315,120]
[320993201,1711732264495,-500.0,0.0005315,120]
[320993202,1711732264506,-500.0,0.0005315,120]
[320993203,1711732264515,-671.55,0.0005315,120]
[320993204,1711732264525,-500.0,0.0005315,120]
[320993205,1711732264535,-500.0,0.0005315,120]
[320993206,1711732264545,-500.0,0.0005315,120]
[320993207,1711732264554,-997.84,0.0005315,120]
[320993208,1711732264564,-500.0,0.0005315,120]
[320993209,1711732264574,-500.0,0.0005315,120]
[320993210,1711732264583,-533.61,0.0005315,120]
[320993211,1711732264593,-500.0,0.0005315,120]
[320993212,1711732264602,-500.0,0.0005315,120]
[320993213,1711732264612,-500.0,0.0005315,120]
[320993214,1711732264622,-500.0,0.0005315,120]
[320993215,1711732264632,-500.0,0.0005315,120]
[320993216,1711732264641,-500.0,0.0005315,120]
[320993217,1711732264651,-500.0,0.0005315,120]
[320993218,1711732264660,-500.0,0.0005315,120]
[320993219,1711732264669,-500.0,0.0005315,120]
[320993220,1711732264679,-500.0,0.0005315,120]
[320993221,1711732264689,-665.65,0.0005315,120]
[320993222,1711732264698,-500.0,0.0005315,120]
[320993223,1711732264707,-500.0,0.0005315,120]
[320993224,1711732264717,-500.0,0.0005315,120]
[320993225,1711732264726,-500.0,0.0005315,120]
[320993226,1711732264736,-546.22,0.0005315,120]
[320993227,1711732264746,-666.0,0.0005315,120]
[320993228,1711732264755,-500.0,0.0005315,120]
[320993229,1711732264765,-496.22,0.0005315,7]
[320993230,1711732264775,-507.49,0.0005315,120]
[320993231,1711732264789,-500.0,0.0005315,120]
[320993232,1711732264800,-500.0,0.0005315,120]
[320993233,1711732264809,-534.0,0.0005315,120]
[320993234,1711732264819,-500.0,0.0005315,120]
[320993235,1711732264829,-460.51357745,0.0005315,120]
[320993236,1711732264845,-500.0,0.0005315,120]
[320993237,1711732264856,-500.0,0.0005315,120]
[320993238,1711732264872,-500.0,0.0005315,120]
[320993239,1711732264882,-500.0,0.0005315,120]
[320993240,1711732264891,-500.0,0.0005315,120]
[320993241,1711732264903,-500.0,0.0005315,120]
[320993242,1711732264912,-500.0,0.0005315,120]
[320993243,1711732264921,-500.0,0.0005315,120]
[320993244,1711732264931,-500.0,0.0005315,120]
[320993245,1711732264942,-250.33,0.0005315,120]
[320993246,1711732264951,-500.0,0.0005315,120]
[320993247,1711732264962,-500.0,0.0005315,120]
[320993248,1711732264971,-500.0,0.0005315,120]
[320993249,1711732264980,-500.0,0.0005315,120]
[320993250,1711732264990,-500.0,0.0005315,120]
[320993251,1711732265000,-500.0,0.0005315,120]
[320993252,1711732265009,-500.0,0.0005315,120]
[320993253,1711732265019,-500.0,0.0005315,120]
[320993254,1711732265029,-500.0,0.0005315,120]
[320993255,1711732265040,-500.0,0.0005315,120]
[320993256,1711732265051,-500.0,0.0005315,120]
[320993257,1711732265061,-520.26,0.0005315,120]
[320993258,1711732265071,-1906.05,0.0005315,120]
[320993259,1711732265081,-464.14,0.0005315,120]
[320993260,1711732265091,-500.0,0.0005315,120]
[320993261,1711732265101,-500.0,0.0005315,120]
[320993262,1711732265111,-500.0,0.0005315,120]
[320993263,1711732265121,-500.0,0.0005315,120]
[320993264,1711732265131,-500.0,0.0005315,120]
[320993265,1711732265141,-606.52996066,0.0005315,120]
[320993266,1711732265151,-500.0,0.0005315,120]
[320993267,1711732265161,-500.0,0.0005315,120]
[320993268,1711732265171,-151.0,0.0005315,7]
[320993269,1711732265181,-500.0,0.0005315,120]
[320993270,1711732265191,-500.0,0.0005315,120]
[320993271,1711732265202,-500.0,0.0005315,120]
[320993272,1711732265212,-343.91,0.0005315,120]
[320993273,1711732265222,-500.0,0.0005315,120]
[320993274,1711732265232,-500.0,0.0005315,120]
[320993275,1711732265242,-184.87,0.0005315,120]
[320993276,1711732265254,-688.19817,0.0005315,60]
[320993277,1711732265265,-500.0,0.0005315,2]
[320993278,1711732265276,-381.43,0.0005315,120]
[320993279,1711732265287,-151.0,0.0005315,120]
[320993280,1711732265297,-500.0,0.0005315,120]
[320993281,1711732265307,-688.19817,0.0005315,60]
[320993282,1711732265317,-500.0,0.0005315,2]
[320993283,1711732265327,-151.0,0.0005315,120]
[320993284,1711732265337,-420.23475037,0.0005315,120]
[320993285,1711732265347,-151.0,0.0005315,120]
[320993286,1711732265357,-500.0,0.0005315,120]
[320993287,1711732265367,-500.0,0.0005315,120]
[320993288,1711732265377,-523.34924572,0.0005315,120]
[320993289,1711732265388,-151.0,0.0005315,120]
[320993290,1711732265398,-500.0,0.0005315,120]
[320993291,1711732265408,-500.0,0.0005315,120]
[320993292,1711732265418,-500.0,0.0005315,120]
[320993293,1711732265428,-684.29,0.0005315,120]
[320993294,1711732265438,-500.0,0.0005315,120]
[320993295,1711732265448,-213.511496,0.0005315,120]
[320993296,1711732265458,-213.511496,0.0005315,120]
[320993297,1711732265469,-500.0,0.0005315,120]
[320993298,1711732265479,-500.0,0.0005315,120]
[320993299,1711732265490,-539.83,0.0005315,120]
[320993300,1711732265502,-500.0,0.0005315,120]
[320993301,1711732265512,-500.0,0.0005315,120]
[320993302,1711732265523,-500.0,0.0005315,120]
[320993303,1711732265533,-183.83677638,0.0005315,120]
[320993304,1711732265543,-500.0,0.0005315,120]
[320993305,1711732265555,-500.0,0.0005315,120]
[320993306,1711732265564,-500.0,0.0005315,120]
[320993307,1711732265575,-1706.14,0.0005315,120]
[320993308,1711732265585,-151.0,0.0005315,120]
[320993309,1711732265596,-500.0,0.0005315,120]
[320993310,1711732265607,-959.73,0.0005315,120]
[320993311,1711732265618,-500.0,0.0005315,120]
[320993312,1711732265629,-500.0,0.0005315,120]
[320993313,1711732265639,-151.0,0.0005315,120]
[320993314,1711732265650,-200.269448,0.0005315,120]
[320993315,1711732265661,-195.38,0.0005315,120]
[320993316,1711732265672,-7887.7,0.0005315,120]
[320993317,1711732265682,-151.0,0.0005315,120]
[320993318,1711732265693,-540.13,0.0005315,120]
[320993319,1711732265703,-500.0,0.0005315,120]
[320993320,1711732265714,-500.0,0.0005315,120]
[320993321,1711732265725,-1600.31,0.0005315,120]
[320993322,1711732265736,-205.868362,0.0005315,120]
[320993323,1711732265747,-868.17,0.0005315,120]
[320993324,1711732265764,-500.0,0.0005315,120]
[320993325,1711732265775,-583.92,0.0005315,120]
[320993326,1711732265786,-500.0,0.0005315,120]
[320993327,1711732265796,-500.0,0.0005315,120]
[320993328,1711732265807,-151.0,0.0005315,120]
[320993329,1711732265818,-151.0,0.0005315,120]
[320993330,1711732265828,-500.0,0.0005315,120]
[320993331,1711732265839,-500.0,0.0005315,120]
[320993332,1711732265849,-500.0,0.0005315,120]
[320993333,1711732265864,-500.0,0.0005315,120]
[320993334,1711732265874,-280.31,0.0005315,120]
[320993335,1711732265884,-500.0,0.0005315,120]
[320993336,1711732265894,-666.09,0.0005315,120]
[320993337,1711732265905,-500.0,0.0005315,120]
[320993338,1711732265915,-2866.09,0.0005315,120]
[320993339,1711732265925,-501.42,0.0005315,120]
[320993340,1711732265936,-500.0,0.0005315,120]
[320993341,1711732265947,-695.15,0.0005315,120]
[320993342,1711732265958,-480.598738,0.0005315,120]
[320993343,1711732265969,-151.0,0.0005315,120]
[320993344,1711732265979,-4227.5,0.0005315,120]
[320993345,1711732265990,-254.18620487,0.0005315,120]
[320993346,1711732266002,-639.06,0.0005315,120]
[320993347,1711732266013,-480.598738,0.0005315,120]
[320993348,1711732266023,-5650.1,0.0005315,120]
[320993349,1711732266034,-16788.45,0.0005315,120]
[320993350,1711732266044,-500.0,0.0005315,120]
[320993351,1711732266054,-500.0,0.0005315,120]
[320993352,1711732266064,-500.0,0.0005315,120]
[320993353,1711732266075,-3741.11,0.0005315,120]
[320993354,1711732266085,-151.0,0.0005315,120]
[320993355,1711732266095,-4021.4,0.0005315,120]
[320993356,1711732266105,-2018.41,0.0005315,120]
[320993357,1711732266115,-1018.15,0.0005315,120]
[320993358,1711732266126,-500.0,0.0005315,120]
[320993359,1711732266136,-500.0,0.0005315,120]
[320993360,1711732266146,-2719.17,0.0005315,120]
[320993361,1711732266156,-500.0,0.0005315,120]
[320993362,1711732266166,-500.0,0.0005315,120]
[320993363,1711732266176,-2275.1,0.0005315,120]
[320993364,1711732266186,-1055.56,0.0005315,120]
[320993365,1711732266196,-500.0,0.0005315,120]
[320993366,1711732266207,-3101.43,0.0005315,120]
[320993367,1711732266217,-500.0,0.0005315,120]
[320993368,1711732266227,-500.0,0.0005315,120]
[320993369,1711732266237,-3715.44,0.0005315,120]
[320993370,1711732266248,-500.0,0.0005315,120]
[320993371,1711732266259,-500.0,0.0005315,120]
[320993372,1711732266269,-500.0,0.0005315,120]
[320993373,1711732266280,-4247.9,0.0005315,120]
[320993374,1711732266290,-892.02,0.0005315,120]
[320993375,1711732266301,-1042.94,0.0005315,120]
[320993376,1711732266311,-554.27015034,0.0005315,120]
[320993377,1711732266321,-500.0,0.0005315,120]
[320993378,1711732266331,-500.0,0.0005315,120]
[320993379,1711732266341,-1509.93,0.0005315,120]
[320993380,1711732266518,-830.5,0.0005315,120]
[320993381,1711732266528,-500.0,0.0005315,120]
[320993382,1711732266538,-613.02,0.0005315,120]
[320993383,1711732266548,-1724.86,0.0005315,120]
[320993384,1711732266558,-500.0,0.0005315,120]
[320993385,1711732266567,-905.36,0.0005315,120]
[320993386,1711732266577,-500.0,0.0005315,120]
[320993387,1711732266587,-623.53,0.0005315,120]
[320993388,1711732266597,-802.8,0.0005315,120]
[320993389,1711732266606,-543.31,0.0005315,120]
[320993390,1711732266616,-500.0,0.0005315,120]
[320993391,1711732266625,-1090.75,0.0005315,120]
[320993392,1711732266635,-746.52,0.0005315,120]
[320993393,1711732266645,-171.82232103,0.0005315,120]
[320993394,1711732266655,-826.13,0.0005315,120]
[320993395,1711732266665,-500.0,0.0005315,120]
[320993396,1711732266675,-567.02,0.0005315,120]
[320993397,1711732266685,-500.0,0.0005315,120]
[320993398,1711732266694,-727.16,0.0005315,120]
[320993399,1711732266704,-524.42,0.0005315,120]
[320993400,1711732266714,-3533.95,0.0005315,120]
[320993401,1711732266724,-678.08,0.0005315,120]
[320993402,1711732266734,-1640.68,0.0005315,120]
[320993403,1711732266744,-599.54,0.0005315,120]
[320993404,1711732266757,-823.88,0.0005315,120]
[320993405,1711732266767,-746.65,0.0005315,120]
[320993406,1711732266778,-1247.6,0.0005315,120]
[320993407,1711732266789,-500.0,0.0005315,80]
[320993408,1711732266798,-2016.02,0.0005315,120]
[320993409,1711732266808,-1049.64,0.0005315,120]
[320993410,1711732266817,-500.0,0.0005315,120]
[320993411,1711732266828,-842.24,0.0005315,120]
[320993412,1711732266838,-2897.64,0.0005315,120]
[320993413,1711732266848,-637.97,0.0005315,120]
[320993414,1711732266858,-662.85,0.0005315,120]
[320993415,1711732266869,-500.0,0.0005315,120]
[320993416,1711732266879,-515.79,0.0005315,120]
[320993417,1711732266889,-500.0,0.0005315,120]
[320993418,1711732266899,-1329.88,0.0005315,120]
[320993419,1711732266910,-3024.4,0.0005315,120]
[320993420,1711732266919,-897.89,0.0005315,120]
[320993421,1711732266930,-1703.04,0.0005315,120]
[320993422,1711732266941,-500.0,0.0005315,120]
[320993423,1711732266954,-500.0,0.0005315,120]
[320993424,1711732266964,-2522.14,0.0005315,120]
[320993425,1711732266974,-500.0,0.0005315,120]
[320993426,1711732266984,-5409.47,0.0005315,120]
[320993427,1711732266993,-513.82448945,0.0005315,120]
[320993428,1711732267004,-643.87,0.0005315,120]
[320993429,1711732267014,-1537.3,0.0005315,120]
[320993430,1711732267024,-500.0,0.0005315,120]
[320993431,1711732267034,-1064.6,0.0005315,120]
[320993432,1711732267043,-500.0,0.0005315,120]
[320993433,1711732267052,-532.63,0.0005315,120]
[320993434,1711732267061,-500.0,0.0005315,120]
[320993435,1711732267071,-1623.67,0.0005315,120]
[320993436,1711732267082,-694.49,0.0005315,120]
[320993437,1711732267091,-862.3,0.0005315,120]
[320993438,1711732267101,-3565.13,0.0005315,120]
[320993439,1711732267111,-500.0,0.0005315,60]
[320993440,1711732267121,-2312.51,0.0005315,120]
[320993441,1711732267130,-1378.2,0.0005315,120]
[320993442,1711732267140,-2825.19,0.0005315,120]
[320993443,1711732267150,-1908.96,0.0005315,120]
[320993444,1711732267160,-551.8,0.0005315,120]
[320993445,1711732267170,-3067.75,0.0005315,120]
[320993446,1711732267180,-1505.23,0.0005315,120]
[320993447,1711732267190,-500.0,0.0005315,120]
[320993448,1711732267200,-693.2,0.0005315,120]
[320993449,1711732267210,-618.84,0.0005315,120]
[320993450,1711732267220,-500.0,0.0005315,120]
[320993451,1711732267230,-500.0,0.0005315,120]
[320993452,1711732267239,-500.0,0.0005315,120]
[320993453,1711732267248,-2231.03,0.0005315,120]
[320993454,1711732267258,-500.0,0.0005315,120]
[320993455,1711732267268,-7315.32,0.0005315,120]
[320993456,1711732267279,-1373.64,0.0005315,120]
[320993457,1711732267288,-3551.47,0.0005315,120]
[320993458,1711732267298,-158.47631155,0.0005315,120]
[320993459,1711732267308,-2890.11,0.0005315,120]
[320993460,1711732267318,-3514.04,0.0005315,120]
[320993461,1711732267328,-500.0,0.0005315,120]
[320993462,1711732267338,-3001.64,0.0005315,120]
[320993463,1711732267347,-230.37487242,0.0005315,120]
[320993464,1711732267356,-2751.01,0.0005315,120]
[320993465,1711732267365,-500.0,0.0005315,120]
[320993466,1711732267375,-9275.15,0.0005315,120]
[320993467,1711732267384,-500.0,0.0005315,120]
[320993468,1711732267394,-3751.45,0.0005315,120]
[320993469,1711732267404,-797.83,0.0005315,120]
[320993470,1711732267414,-500.0,0.0005315,120]
[320993471,1711732267423,-706.51,0.0005315,120]
[320993472,1711732267433,-1203.12,0.0005315,120]
[320993473,1711732267442,-2915.8,0.0005315,120]
[320993474,1711732267452,-11829.29,0.0005315,120]
[320993475,1711732267462,-702.44,0.0005315,120]
[320993476,1711732267472,-1475.36,0.0005315,120]
[320993477,1711732267482,-500.0,0.0005315,120]
[320993478,1711732267492,-500.0,0.0005315,120]
[320993479,1711732267503,-725.78,0.0005315,120]
[320993480,1711732267513,-4876.82,0.0005315,120]
[320993481,1711732267523,-1899.07,0.0005315,120]
[320993482,1711732267533,-4287.28,0.0005315,120]
[320993483,1711732267542,-651.91,0.0005315,120]
[320993484,1711732267552,-500.0,0.0005315,120]
[320993485,1711732267561,-500.0,0.0005315,120]
[320993486,1711732267571,-500.0,0.0005315,120]
[320993487,1711732267580,-537.82455013,0.0005315,120]
[320993488,1711732267590,-500.0,0.0005315,120]
[320993489,1711732267599,-3462.31,0.0005315,120]
[320993490,1711732267608,-500.0,0.0005315,120]
[320993491,1711732267618,-500.0,0.0005315,120]
[320993492,1711732267627,-500.0,0.0005315,120]
[320993493,1711732267636,-531.84,0.0005315,120]
[320993494,1711732267646,-970.04,0.0005315,120]
[320993495,1711732267657,-500.0,0.0005315,120]
[320993496,1711732267667,-503.26,0.0005315,120]
[320993497,1711732267676,-546.78,0.0005315,120]
[320993498,1711732267686,-2146.07,0.0005315,120]
[320993499,1711732267695,-2298.97,0.0005315,120]
[320993500,1711732267704,-978.57,0.0005315,120]
[320993501,1711732267713,-3430.95,0.0005315,120]
[320993502,1711732267722,-500.0,0.0005315,120]
[320993503,1711732267731,-1165.91,0.0005315,120]
[320993504,1711732267740,-500.0,0.0005315,120]
[320993505,1711732267750,-4577.78,0.0005315,21]
[320993506,1711732267760,-656.94,0.0005315,120]
[320993507,1711732267768,-500.0,0.0005315,2]
[320993508,1711732267778,-697.59,0.00053163,30]
[320993509,1711732267787,-1000.0,0.00053169,120]
[320993510,1711732267796,-160.06,0.000532,30]
[320993511,1711732267806,-1000.0,0.00053216,120]
[320993512,1711732267815,-1000.0,0.00053262,120]
[320993513,1711732267825,-150.0,0.00053276,14]
[320993514,1711732267834,-150.0,0.00053276,14]
[320993515,1711732267844,-150.0,0.00053276,14]
[320993516,1711732267854,-150.0,0.00053276,14]
[320993517,1711732267865,-150.0,0.00053276,14]
[320993518,1711732267875,-150.0,0.00053276,14]
[320993519,1711732267885,-150.0,0.00053276,14]
[320993520,1711732267894,-1000.0,0.00053309,120]
[320993521,1711732267904,-440.95056199,0.0005331,2]
[320993522,1711732267913,-600.0,0.00053314,120]
[320993523,1711732267923,-160.74416917,0.00053317,60]
[320993524,1711732267932,-2221.18050829,0.00053342,30]
[320993525,1711732267943,-1000.0,0.00053355,120]
[320993526,1711732267953,-309.36103227,0.00053368,2]
[320993527,1711732267962,-176.36,0.0005337,15]
[320993528,1711732267971,-150.5,0.0005338,15]
[320993529,1711732267981,-150.5,0.0005339,15]
[320993530,1711732267990,-1000.0,0.00053401,120]
[320993531,1711732268000,-500.0,0.00053424,120]
[320993532,1711732268010,-500.0,0.00053424,120]
[320993533,1711732268019,-500.0,0.00053424,120]
[320993534,1711732268028,-500.0,0.00053424,120]
[320993535,1711732268038,-500.0,0.00053424,120]
[320993536,1711732268047,-500.0,0.00053424,120]
[320993537,1711732268057,-500.0,0.00053424,120]
[320993538,1711732268067,-500.0,0.00053424,120]
[320993539,1711732268076,-500.0,0.00053424,120]
[320993540,1711732268086,-500.0,0.00053424,120]
[320993541,1711732268095,-500.0,0.00053424,120]
[320993542,1711732268104,-500.0,0.00053424,120]
[320993543,1711732268113,-500.0,0.00053424,120]
[320993544,1711732268123,-500.0,0.00053424,120]
[320993545,1711732268132,-500.0,0.00053424,120]
[320993546,1711732268143,-500.0,0.00053424,120]
[320993547,1711732268152,-500.0,0.00053424,120]
[320993548,1711732268161,-500.0,0.00053424,120]
[320993549,1711732268171,-500.0,0.00053424,120]
[320993550,1711732268180,-500.0,0.00053424,120]
[320993551,1711732268190,-440.78688602,0.00053424,120]
[320993552,1711732268199,-500.0,0.00053424,120]
[320993553,1711732268208,-500.0,0.00053424,120]
[320993554,1711732268218,-564.02295352,0.00053424,120]
[320993555,1711732268227,-500.0,0.00053424,120]
[320993556,1711732268236,-500.0,0.00053424,120]
[320993557,1711732268245,-500.0,0.00053424,120]
[320993558,1711732268256,-557.74,0.00053424,120]
[320993559,1711732268265,-500.0,0.00053424,120]
[320993560,1711732268274,-500.0,0.00053424,120]
[320993561,1711732268284,-500.0,0.00053424,120]
[320993562,1711732268293,-500.0,0.00053424,120]
[320993563,1711732268302,-500.0,0.00053424,120]
[320993564,1711732268311,-671.55,0.00053424,120]
[320993565,1711732268320,-500.0,0.00053424,120]
[320993566,1711732268330,-500.0,0.00053424,120]
[320993567,1711732268339,-500.0,0.00053424,120]
[320993568,1711732268349,-997.84,0.00053424,120]
[320993569,1711732268359,-500.0,0.00053424,120]
[320993570,1711732268368,-500.0,0.00053424,120]
[320993571,1711732268378,-533.61,0.00053424,120]
[320993572,1711732268387,-500.0,0.00053424,120]
[320993573,1711732268396,-500.0,0.00053424,120]
[320993574,1711732268406,-500.0,0.00053424,120]
[320993575,1711732268415,-500.0,0.00053424,120]
[320993576,1711732268425,-500.0,0.00053424,120]
[320993577,1711732268435,-500.0,0.00053424,120]
[320993578,1711732268444,-500.0,0.00053424,120]
[320993579,1711732268454,-500.0,0.00053424,120]
[320993580,1711732268463,-500.0,0.00053424,120]
[320993581,1711732268473,-500.0,0.00053424,120]
[320993582,1711732268483,-665.65,0.00053424,120]